bitfinex-derivatives/quotes_BTCF0:USTF0_20241025
["timestamp","ask_amount","ask_price","bid_price","bid_amount"]
[1729817619834,0.11695107,67963.0,67962.0,0.073596]
[1729817623827,0.20677623,67963.0,67962.0,0.073596]
[1729817624030,0.1154234,67963.0,67962.0,0.073596]
[1729817624917,0.07024349,67963.0,67962.0,0.073596]
[1729817625520,0.1154234,67963.0,67962.0,0.073596]
[1729817625828,0.07024349,67963.0,67962.0,0.073596]
[1729817626032,0.1154234,67963.0,67962.0,0.073596]
[1729817626226,0.07024349,67963.0,67962.0,0.073596]
[1729817626427,0.1154234,67963.0,67962.0,0.434396]
[1729817627423,0.07636491,67965.0,67964.0,0.073594]
[1729817627618,0.07636491,67965.0,67964.0,0.17276123]
[1729817628322,0.07636491,67965.0,67964.0,0.29099858]
[1729817628823,0.07636491,67965.0,67964.0,0.21749897]
[1729817629142,0.07636491,67965.0,67964.0,0.21749901]
[1729817631928,0.07636491,67965.0,67964.0,0.29109301]
[1729817632830,0.07636491,67969.0,67964.0,0.29109301]
[1729817633024,0.07636491,67969.0,67968.0,0.073589]
[1729817633229,0.07636491,67969.0,67968.0,0.29095346]
[1729817634436,0.20000823,67969.0,67968.0,0.073589]
[1729817634627,0.24518695,67969.0,67962.0,0.3608]
[1729817634834,0.07636491,67969.0,67968.0,0.073589]
[1729817635029,0.1160483,67969.0,67968.0,0.4785174]
[1729817635236,0.1160483,67969.0,67968.0,0.55488231]
[1729817635430,0.1160483,67969.0,67968.0,0.40215249]
[1729817635835,0.19361467,67969.0,67968.0,0.40215249]
[1729817636030,0.27686883,67969.0,67968.0,0.40215249]
[1729817636935,0.1160483,67969.0,67968.0,0.40215249]
[1729817641046,0.1160483,67969.0,67968.0,0.4785174]
[1729817641245,0.1160483,67969.0,67968.0,0.55488231]
[1729817641444,0.16082053,67971.0,67968.0,0.65386304]
[1729817641638,0.07636491,67974.0,67973.0,0.073584]
[1729817642044,0.07636491,67974.0,67973.0,0.13243507]
[1729817642240,0.073583,67974.0,67971.0,0.05885107]
[1729817642439,0.07636491,67978.0,67970.0,0.05885144]
[1729817642440,0.14995091,67971.0,67970.0,0.05885144]
[1729817642649,0.14995091,67971.0,67969.0,0.05885144]
[1729817642854,0.073587,67970.0,67969.0,0.05885144]
[1729817643347,0.073587,67970.0,67968.0,0.41965144]
[1729817643744,0.073587,67970.0,67969.0,0.05885144]
[1729817643951,0.073587,67970.0,67968.0,0.41965144]
[1729817644248,0.0671,67969.0,67968.0,0.41965144]
[1729817644752,0.0671,67969.0,67968.0,0.3608]
[1729817644950,0.0671,67969.0,67966.0,0.13244244]
[1729817645247,0.07636491,67966.0,67964.0,0.073593]
[1729817645844,0.07636491,67966.0,67965.0,0.073593]
[1729817646041,0.0671,67969.0,67964.0,0.07356257]
[1729817646242,0.07636491,67970.0,67968.0,0.3608]
[1729817646438,0.073576,67980.0,67970.0,0.073587]
[1729817646748,0.073576,67980.0,67979.0,0.3608]
[1729817646937,0.073576,67980.0,67979.0,0.40493381]
[1729817647145,0.073576,67980.0,67979.0,0.40492544]
[1729817647340,0.073576,67980.0,67979.0,0.40492459]
[1729817647534,0.073576,67980.0,67979.0,0.3608]
[1729817647746,0.07636491,67981.0,67979.0,0.40492459]
[1729817647945,0.07636491,67988.0,67980.0,0.07636491]
[1729817648145,0.07636491,67988.0,67985.0,0.3608]
[1729817648547,0.07636491,67988.0,67986.0,0.11769163]
[1729817649352,0.07636491,67988.0,67987.0,0.073569]
[1729817649536,0.24646927,67988.0,67985.0,0.23960882]
[1729817649741,0.17010436,67987.0,67984.0,0.07636491]
[1729817649942,0.17010436,67986.0,67985.0,0.073571]
[1729817651345,0.17010436,67986.0,67985.0,0.14993591]
[1729817652150,0.17010436,67986.0,67985.0,0.51073591]
[1729817652850,0.11732519,67986.0,67985.0,0.51073591]
[1729817654950,0.13398937,67986.0,67985.0,0.51073591]
[1729817655153,0.11225968,67986.0,67985.0,0.51073591]
[1729817655354,0.11225968,67986.0,67985.0,0.95201591]
[1729817655853,0.11225968,67986.0,67985.0,1.05345591]
[1729817656054,0.11225968,67986.0,67985.0,0.68854082]
[1729817656250,0.11225968,67986.0,67985.0,1.12982082]
[1729817656448,0.0812102,67986.0,67985.0,1.12982082]
[1729817656650,0.3188106,67992.0,67991.0,0.073564]
[1729817656651,0.26603143,67992.0,67991.0,0.073564]
[1729817656852,0.07636491,67992.0,67991.0,0.073564]
[1729817658153,0.07636491,67996.0,67991.0,0.073564]
[1729817659762,0.07636491,67996.0,67992.0,0.073563]
[1729817661748,0.07636491,67996.0,67993.0,0.073562]
[1729817661948,0.36300662,68000.0,67995.0,0.07356]
[1729817661949,0.43937153,68000.0,67995.0,0.07356]
[1729817662154,0.43937153,68000.0,67992.0,0.07636491]
[1729817662155,0.36300662,68000.0,67999.0,0.07636491]
[1729817662466,0.36300662,68000.0,67999.0,0.073556]
[1729817666165,0.00220662,68000.0,67999.0,0.073556]
[1729817673173,0.00220662,68000.0,67995.0,0.10144]
[1729817673677,0.07636491,67999.0,67995.0,0.175]
[1729817673867,0.07636491,67998.0,67995.0,0.175]
[1729817674367,0.07636491,67998.0,67996.0,0.073558]
[1729817674973,0.07636491,67998.0,67994.0,0.10144]
[1729817675175,0.07636491,67998.0,67995.0,0.07356]
[1729817675371,0.36492662,68000.0,67998.0,0.073557]
[1729817675573,0.00220662,68000.0,67999.0,0.14992091]
[1729817676376,0.00220662,68000.0,67999.0,0.1737193]
[1729817676671,0.073545,68009.0,68005.0,0.073549]
[1729817676877,0.073545,68009.0,68008.0,0.05008165]
[1729817678374,0.07631839,68011.0,68009.0,0.073545]
[1729817679776,0.14986139,68011.0,68009.0,0.073545]
[1729817680077,0.14986139,68011.0,68010.0,0.073544]
[1729817680667,0.51066139,68011.0,68010.0,0.073544]
[1729817681287,0.3608,68019.0,68010.0,0.073544]
[1729817681288,0.00220606,68023.0,68022.0,0.073531]
[1729817681771,0.00220606,68023.0,68022.0,0.04225814]
[1729817681772,0.11630672,68023.0,68022.0,0.04225814]
[1729817686577,0.11568847,68023.0,68022.0,0.04225814]
[1729817686782,0.11568847,68023.0,68018.0,0.25195678]
[1729817686982,0.16623237,68022.0,68018.0,0.25195678]
[1729817687183,0.16623237,68021.0,68018.0,0.25195678]
[1729817687388,0.16623237,68020.0,68019.0,0.073534]
[1729817687680,0.11348241,68020.0,68019.0,0.073534]
[1729817688577,0.00220606,68023.0,68018.0,0.09932]
[1729817688578,0.07631839,68022.0,68018.0,0.09932]
[1729817688886,0.07631839,68022.0,68020.0,0.073533]
[1729817691585,0.073534,68020.0,68015.0,0.073538]
[1729817691885,0.07631839,68018.0,68015.0,0.073538]
[1729817692076,0.14985439,68018.0,68010.0,0.073543]
[1729817692272,0.073537,68017.0,68011.0,0.172863]
[1729817692682,0.073537,68017.0,68011.0,0.24918139]
[1729817692881,0.073537,68017.0,68011.0,0.17563839]
[1729817693181,0.073537,68017.0,68013.0,0.07354]
[1729817693582,0.073537,68017.0,68015.0,0.3608]
[1729817693784,0.07631839,68018.0,68015.0,0.3608]
[1729817694087,0.07631839,68018.0,68013.0,0.07354]
[1729817696385,0.07631839,68018.0,68014.0,0.073538]
[1729817696589,0.07631839,68018.0,68014.0,0.14694419]
[1729817697190,0.073536,68017.0,68015.0,0.17427077]
[1729817697378,0.3608,68021.0,68012.0,0.3608]
[1729817697379,0.07631839,68015.0,68012.0,0.07340619]
[1729817697583,0.07631839,68015.0,68008.0,0.09029234]
[1729817697584,0.073542,68012.0,68009.0,0.07340619]
[1729817697784,0.07631839,68011.0,68010.0,0.07340619]
[1729817698081,0.07631839,68011.0,68010.0,0.17445137]
[1729817698386,0.07631839,68011.0,68010.0,0.10104518]
[1729817699091,0.0247983,68011.0,68010.0,0.10104518]
[1729817699484,0.0247983,68011.0,68010.0,0.18913261]
[1729817699781,0.0247983,68011.0,68010.0,0.10104518]
[1729817700487,0.14985739,68015.0,68011.0,0.073543]
[1729817700687,0.43711839,68021.0,68017.0,0.073535]
[1729817700889,0.43711839,68021.0,68017.0,0.14695157]
[1729817701492,0.3608,68021.0,68019.0,0.073534]
[1729817701683,0.3608,68021.0,68020.0,0.14985139]
[1729817701884,0.3608,68021.0,68020.0,0.22326796]
[1729817702086,0.073527,68026.0,68020.0,0.25025106]
[1729817702382,0.07631839,68025.0,68021.0,0.17381648]
[1729817702581,0.07631839,68025.0,68021.0,0.07341681]
[1729817702897,0.07631839,68025.0,68021.0,0.14694881]
[1729817703093,0.07631839,68025.0,68021.0,0.2232672]
[1729817703292,0.07631839,68025.0,68022.0,0.07341681]
[1729817703293,0.14984639,68025.0,68022.0,0.07341681]
[1729817703591,0.03328813,68023.0,68021.0,0.05737029]
[1729817703785,0.03108207,68022.0,68018.0,0.07631839]
[1729817703989,0.14614987,68019.0,68018.0,0.07631839]
[1729817704491,0.2584336,68019.0,68018.0,0.14985339]
[1729817704888,0.11228373,68019.0,68018.0,0.14985339]
[1729817709084,0.03657432,68019.0,68018.0,0.14985339]
[1729817709286,0.03657432,68019.0,68018.0,0.07631839]
[1729817709287,0.07669419,68019.0,68018.0,0.07631839]
[1729817709491,0.11333072,68019.0,68018.0,0.14985339]
[1729817709788,0.11333072,68022.0,68018.0,0.07631839]
[1729817709987,0.06818788,68021.0,68020.0,0.07631839]
[1729817710302,0.19189651,68021.0,68020.0,0.1736781]
[1729817711394,0.11333072,68021.0,68020.0,0.1736781]
[1729817711696,0.00220606,68023.0,68022.0,0.073531]
[1729817711891,0.00220606,68023.0,68022.0,0.53373111]
[1729817712093,0.00220606,68023.0,68022.0,0.62181854]
[1729817712293,0.00220606,68023.0,68022.0,0.62189302]
[1729817712493,0.05007255,68037.0,68032.0,0.07352]
[1729817712695,0.05007255,68037.0,68035.0,0.04407892]
[1729817712907,0.12097255,68036.0,68033.0,0.073519]
[1729817713399,0.0709,68036.0,68035.0,0.14420898]
[1729817713793,0.0709,68036.0,68035.0,0.1001451]
[1729817713993,0.05007255,68035.0,68034.0,0.04406388]
[1729817714193,0.12358955,68035.0,68034.0,0.04406388]
[1729817714501,0.07629796,68034.0,68033.0,0.04406388]
[1729817715301,0.07629796,68033.0,68032.0,0.04406388]
[1729817715606,0.07629796,68033.0,68032.0,0.07352]
[1729817715905,0.07629796,68033.0,68032.0,0.11756793]
[1729817717212,0.07629796,68033.0,68032.0,0.07352]
[1729817717397,0.14719796,68036.0,68035.0,0.073517]
[1729817717900,0.073522,68030.0,68029.0,0.04404793]
[1729817718104,0.073522,68030.0,68027.0,0.073525]
[1729817718309,0.07629796,68028.0,68027.0,0.073525]
[1729817718602,0.15880323,68028.0,68027.0,0.073525]
[1729817718800,0.07629796,68027.0,68022.0,0.10152]
[1729817719005,0.07629796,68027.0,68019.0,0.04801761]
[1729817719006,0.07629796,68024.0,68018.0,0.3608]
[1729817719305,0.2437313,68023.0,68021.0,0.073532]
[1729817719505,0.16743334,68022.0,68021.0,0.073532]
[1729817719707,0.16743334,68022.0,68020.0,0.10152]
[1729817719909,0.16743334,68021.0,68020.0,0.10152]
[1729817720906,0.16743334,68021.0,68020.0,0.175053]
[1729817723000,0.16230886,68021.0,68020.0,0.175053]
[1729817723302,0.16230886,68021.0,68020.0,0.073533]
[1729817724813,0.07629796,68020.0,68006.0,0.15259592]
[1729817725108,0.07629796,68012.0,68011.0,0.073542]
[1729817725406,0.18997225,68009.0,68008.0,0.07575091]
[1729817725602,0.16230886,68009.0,68008.0,0.07575091]
[1729817725802,0.16230886,68009.0,68008.0,0.04793653]
[1729817726699,0.0761,68020.0,68018.0,0.073535]
[1729817726903,0.0761,68020.0,68019.0,0.15259592]
[1729817727203,0.0761,68020.0,68018.0,0.073535]
[1729817727599,0.0761,68020.0,68018.0,0.11757564]
[1729817728901,0.0761,68020.0,68019.0,0.04404064]
[1729817729298,0.0761,68020.0,68018.0,0.11757564]
[1729817729697,0.0761,68020.0,68019.0,0.073534]
[1729817730502,0.0761,68020.0,68019.0,0.11757464]
[1729817730907,0.0761,68020.0,68019.0,0.073534]
[1729817733607,0.33550564,68020.0,68019.0,0.04648813]
[1729817733813,0.3882582,68020.0,68019.0,0.04648813]
[1729817738120,0.31196024,68020.0,68019.0,0.04648813]
[1729817738410,0.16232724,68020.0,68019.0,0.19908405]
[1729817738610,0.10957468,68020.0,68019.0,0.19908405]
[1729817739716,0.10957468,68020.0,68019.0,0.15259592]
[1729817739914,0.18911287,68020.0,68019.0,0.22612992]
[1729817740108,0.10957468,68020.0,68019.0,0.22612992]
[1729817741707,0.15203041,68026.0,68019.0,0.15259592]
[1729817741912,0.15203041,68026.0,68023.0,0.04403671]
[1729817742314,0.15203041,68026.0,68024.0,0.04403671]
[1729817742515,0.07850341,68026.0,68024.0,0.11756471]
[1729817742721,0.00220545,68026.0,68024.0,0.11756471]
[1729817742925,0.00220545,68026.0,68025.0,0.04403671]
[1729817744719,0.00220545,68026.0,68024.0,0.073528]
[1729817745223,0.00220545,68026.0,68025.0,0.04405305]
[1729817745416,0.00220545,68026.0,68025.0,0.04405976]
[1729817745722,0.00220545,68026.0,68025.0,0.04405945]
[1729817745925,0.00220545,68026.0,68024.0,0.073528]
[1729817746120,0.07573245,68026.0,68024.0,0.073528]
[1729817746322,0.00220545,68026.0,68022.0,0.05871561]
[1729817746519,0.07573245,68026.0,68025.0,0.04406884]
[1729817747424,0.07573245,68026.0,68022.0,0.05871561]
[1729817747425,0.00220545,68026.0,68022.0,0.05871561]
[1729817747626,0.073529,68024.0,68022.0,0.05871561]
[1729817748423,0.073529,68024.0,68021.0,0.174572]
[1729817748424,0.073529,68024.0,68023.0,0.05871561]
[1729817748821,0.073529,68024.0,68021.0,0.174572]
[1729817750320,0.073529,68024.0,68021.0,0.1176128]
[1729817750625,0.073529,68024.0,68021.0,0.073532]
[1729817750925,0.073529,68024.0,68021.0,0.1176128]
[1729817751319,0.073529,68024.0,68021.0,0.073532]
[1729817752217,0.073529,68024.0,68023.0,0.05007229]
[1729817752425,0.073529,68024.0,68023.0,0.14422538]
[1729817752816,0.073529,68024.0,68023.0,0.10014458]
[1729817754527,0.073529,68024.0,68023.0,0.14423671]
[1729817754731,0.073529,68024.0,68023.0,0.14423768]
[1729817755430,0.153,68025.0,68023.0,0.21776668]
[1729817755627,0.00220545,68026.0,68025.0,0.073528]
[1729817755833,0.06662674,68026.0,68024.0,0.0440931]
[1729817756031,0.1095638,68025.0,68024.0,0.1176221]
[1729817756330,0.11164726,68025.0,68024.0,0.1176221]
[1729817756825,0.17679656,68025.0,68024.0,0.1176221]
[1729817757019,0.22193792,68025.0,68024.0,0.1176221]
[1729817757224,0.25795212,68025.0,68024.0,0.1176221]
[1729817758118,0.25795212,68025.0,68024.0,0.073529]
[1729817760737,0.25794947,68025.0,68024.0,0.073529]
[1729817761231,0.11164461,68025.0,68024.0,0.073529]
[1729817763831,0.00208346,68025.0,68024.0,0.073529]
[1729817764733,0.12568375,68025.0,68024.0,0.073529]
[1729817765139,0.12568375,68025.0,68024.0,0.11762879]
[1729817765446,0.12568375,68025.0,68024.0,0.073529]
[1729817765447,0.17575604,68025.0,68024.0,0.073529]
[1729817767131,0.17575604,68025.0,68023.0,0.04410355]
[1729817767332,0.0793,68024.0,68021.0,0.04410355]
[1729817767834,0.0793,68024.0,68020.0,0.27471758]
[1729817767835,0.0793,68024.0,68022.0,0.04410355]
[1729817768228,0.00208346,68023.0,68022.0,0.04410355]
[1729817769434,0.00208346,68023.0,68020.0,0.33343319]
[1729817769737,0.00208346,68023.0,68021.0,0.073532]
[1729817770040,0.00208346,68023.0,68022.0,0.0441221]
[1729817770540,0.07561346,68023.0,68022.0,0.0441221]
[1729817770742,0.07561346,68023.0,68021.0,0.073532]
[1729817770942,0.10956582,68022.0,68020.0,0.13270718]
[1729817771140,0.16231412,68021.0,68020.0,0.20624018]
[1729817771338,0.11164928,68021.0,68020.0,0.20624018]
[1729817772027,0.11164928,68021.0,68020.0,0.25631247]
[1729817773843,0.11164649,68021.0,68020.0,0.25631247]
[1729817778831,0.00208346,68021.0,68020.0,0.35985432]
[1729817781842,0.00280173,68021.0,68020.0,0.35985432]
[1729817782744,0.00280173,68021.0,68020.0,0.35769432]
[1729817785948,0.00280173,68021.0,68020.0,0.3129875]
[1729817787649,0.00280173,68021.0,68020.0,0.25415247]
[1729817787849,0.00280173,68021.0,68020.0,0.31298975]
[1729817788051,0.00280173,68021.0,68020.0,0.25415247]
[1729817788252,0.00280173,68021.0,68020.0,0.31299]
[1729817788450,0.00280173,68021.0,68020.0,0.25415247]
[1729817788849,0.00280173,68021.0,68020.0,0.31299225]
[1729817790669,0.00280173,68021.0,68020.0,0.25415247]
[1729817790851,0.00280173,68021.0,68020.0,0.31299413]
[1729817791049,0.00280173,68021.0,68020.0,0.25415247]
[1729817793959,0.06722548,68021.0,68020.0,0.14895229]
[1729817794154,0.06722548,68021.0,68020.0,0.19902458]
[1729817794657,0.11236775,68021.0,68020.0,0.19902458]
[1729817794857,0.1126096,68021.0,68020.0,0.27255758]
[1729817795854,0.1126096,68021.0,68020.0,0.12360529]
[1729817796062,0.1126096,68021.0,68020.0,0.27255758]
[1729817798753,0.1126096,68021.0,68018.0,0.00941001]
[1729817799061,0.05007229,68018.0,68017.0,0.09884]
[1729817799251,0.15963831,68018.0,68017.0,0.09884]
[1729817799453,0.16231441,68018.0,68017.0,0.19898458]
[1729817799660,0.10956602,68018.0,68017.0,0.19898458]
[1729817799854,0.1126096,68018.0,68017.0,0.10014458]
[1729817800061,0.21543028,68018.0,68017.0,0.10014458]
[1729817800360,0.21543028,68018.0,68017.0,0.06401083]
[1729817800664,0.16535799,68018.0,68017.0,0.06401083]
[1729817800962,0.00304358,68018.0,68017.0,0.29090245]
[1729817801166,0.073534,68019.0,68017.0,0.29090245]
[1729817801456,0.073534,68019.0,68018.0,0.22689162]
[1729817801766,0.12360629,68019.0,68018.0,0.22689162]
[1729817801973,0.12360629,68019.0,68018.0,0.22821627]
[1729817802259,0.12360629,68019.0,68018.0,0.12406686]
[1729817802460,0.12360629,68019.0,68018.0,0.22815314]
[1729817802655,0.12360629,68019.0,68018.0,0.10408628]
[1729817802854,0.12360629,68019.0,68018.0,0.22814203]
[1729817803053,0.12360629,68019.0,68018.0,0.10408628]
[1729817806069,0.12360629,68019.0,68018.0,0.1923114]
[1729817806368,0.17367858,68019.0,68018.0,0.20423086]
[1729817806564,0.17367858,68019.0,68018.0,0.29245232]
[1729817806863,0.17367858,68019.0,68018.0,0.20423086]
[1729817807263,0.17367858,68019.0,68018.0,0.29181165]
[1729817807461,0.17367858,68019.0,68018.0,0.20358937]
[1729817807662,0.17367858,68019.0,68018.0,0.29181165]
[1729817808869,0.20208972,68019.0,68018.0,0.10014458]
[1729817811564,0.02841114,68019.0,68018.0,0.10014458]
[1729817811766,0.02841114,68019.0,68018.0,0.22375187]
[1729817812076,0.00220545,68026.0,68025.0,0.073528]
[1729817812266,0.03061376,68026.0,68025.0,0.17367258]
[1729817812563,0.03062787,68026.0,68025.0,0.17367258]
[1729817815870,0.00220545,68026.0,68025.0,0.17367258]
[1729817816367,0.05007229,68028.0,68027.0,0.073525]
[1729817816570,0.05007229,68028.0,68027.0,0.13231915]
[1729817817770,0.05007229,68028.0,68027.0,0.073525]
[1729817822167,0.12359629,68028.0,68027.0,0.073525]
[1729817822684,0.073527,68026.0,68025.0,0.05879415]
[1729817822985,0.073529,68024.0,68023.0,0.073529]
[1729817823172,0.12360129,68024.0,68023.0,0.073529]
[1729817823772,0.05007229,68023.0,68022.0,0.06827666]
[1729817823966,0.28592498,68023.0,68018.0,0.03992565]
[1729817824172,0.05007229,68020.0,68019.0,0.073534]
[1729817824371,0.11449932,68020.0,68019.0,0.073534]
[1729817824572,0.21239498,68020.0,68019.0,0.073534]
[1729817825674,0.21239498,68020.0,68018.0,0.03992565]
[1729817825874,0.05007229,68018.0,68017.0,0.05007229]
[1729817826182,0.21239498,68018.0,68017.0,0.05007229]
[1729817827790,0.21239498,68018.0,68016.0,0.073537]
[1729817828083,0.16232269,68017.0,68016.0,0.073537]
[1729817828281,0.10957161,68017.0,68016.0,0.073537]
[1729817828783,0.06442703,68017.0,68016.0,0.073537]
[1729817829671,0.10957161,68017.0,68016.0,0.073537]
[1729817830278,0.02841026,68017.0,68016.0,0.073537]
[1729817830482,0.10957161,68017.0,68016.0,0.073537]
[1729817831082,0.14623759,68018.0,68017.0,0.073536]
[1729817831275,0.14623759,68018.0,68017.0,0.59639173]
[1729817831476,0.01483759,68018.0,68017.0,0.49350541]
[1729817831878,0.01483759,68018.0,68017.0,0.44343312]
[1729817832077,0.01483759,68018.0,68017.0,0.49350541]
[1729817832386,0.01483759,68018.0,68017.0,0.44343312]
[1729817833987,0.01656537,68018.0,68017.0,0.44343312]
[1729817834175,0.01656537,68018.0,68017.0,0.8885301]
[1729817837190,0.01679777,68018.0,68017.0,0.8885301]
[1729817837485,0.01679777,68018.0,68017.0,0.98867468]
[1729817838184,0.01679777,68018.0,68017.0,0.54759468]
[1729817838976,0.01679777,68018.0,68017.0,0.40288408]
[1729817839478,0.00196018,68018.0,68017.0,0.40288408]
[1729817843477,0.00196018,68018.0,68017.0,0.59767967]
[1729817843678,0.00196018,68018.0,68017.0,0.64775196]
[1729817844282,0.00196018,68018.0,68017.0,0.75059013]
[1729817844478,0.00196018,68018.0,68017.0,0.75981503]
[1729817845586,0.00196018,68018.0,68017.0,0.65697686]
[1729817845788,0.00196018,68018.0,68017.0,0.60690457]
[1729817845984,0.00196018,68018.0,68017.0,0.28305006]
[1729817846784,0.0021921,68018.0,68017.0,0.28305006]
[1729817847481,0.0803,68030.0,68017.0,0.65059406]
[1729817847687,0.086,68032.0,68031.0,0.073521]
[1729817847891,0.11440387,68032.0,68031.0,0.073521]
[1729817852694,0.53212,68041.0,68038.0,0.073513]
[1729817853000,0.10940384,68040.0,68039.0,0.27380116]
[1729817853195,0.02840384,68040.0,68039.0,0.27380116]
[1729817853395,0.00220538,68042.0,68039.0,0.20028916]
[1729817853693,0.00220538,68042.0,68041.0,0.17365458]
[1729817853881,0.0306042,68042.0,68041.0,0.17365458]
[1729817854085,0.00220538,68042.0,68041.0,0.2776518]
[1729817854282,0.00220538,68042.0,68041.0,0.31559278]
[1729817854498,0.05227767,68042.0,68041.0,0.06071049]
[1729817854998,0.05007229,68041.0,68039.0,0.10014458]
[1729817855291,0.13747229,68041.0,68038.0,0.05007229]
[1729817855496,0.05007229,68039.0,68036.0,0.0092789]
[1729817855686,0.05007229,68039.0,68030.0,0.3608]
[1729817855687,0.073518,68034.0,68030.0,0.3608]
[1729817855892,0.05007229,68030.0,68027.0,0.17366958]
[1729817856194,0.12285487,68029.0,68028.0,0.073524]
[1729817856387,0.36496538,68042.0,68033.0,0.073518]
[1729817856388,0.07628903,68038.0,68033.0,0.073518]
[1729817856587,0.0817,68041.0,68037.0,0.07628903]
[1729817856788,0.0817,68041.0,68035.0,0.07335735]
[1729817856789,0.14980203,68039.0,68035.0,0.07335735]
[1729817856983,0.434316,68036.0,68034.0,0.07335735]
[1729817857284,0.07628903,68035.0,68029.0,0.07336492]
[1729817857490,0.073524,68028.0,68020.0,0.00927708]
[1729817857686,0.51062103,68021.0,68020.0,0.00927708]
[1729817858096,0.07628903,68020.0,68014.0,0.3608]
[1729817858685,0.07628903,68020.0,68015.0,0.15257806]
[1729817858884,0.43900903,68021.0,68018.0,0.15257806]
[1729817858885,0.36272,68021.0,68018.0,0.15257806]
[1729817859195,0.3608,68021.0,68018.0,0.15257806]
[1729817859690,0.0817,68027.0,68018.0,0.15257806]
[1729817859993,0.0817,68027.0,68026.0,0.22610506]
[1729817864605,0.0841,68033.0,68026.0,0.15257806]
[1729817864789,0.36284,68036.0,68032.0,0.22609806]
[1729817865103,0.3608,68036.0,68032.0,0.22609806]
[1729817867805,0.07628903,68037.0,68032.0,0.22609806]
[1729817867999,0.43708903,68037.0,68032.0,0.22609806]
[1729817869003,0.11116146,68036.0,68032.0,0.22609806]
[1729817869299,0.11116146,68035.0,68032.0,0.22609806]
[1729817869604,0.11116146,68034.0,68032.0,0.22609806]
[1729817869903,0.1111614,68033.0,68032.0,0.22609806]
[1729817870605,0.11116141,68033.0,68032.0,0.07352]
[1729817871006,0.06602643,68033.0,68032.0,0.07352]
[1729817871902,0.07628903,68035.0,68032.0,0.07352]
[1729817872106,0.18745117,68034.0,68032.0,0.07352]
[1729817872307,0.11116214,68033.0,68032.0,0.07352]
[1729817874000,0.03600915,68033.0,68032.0,0.07352]
[1729817874398,0.11116214,68036.0,68032.0,0.07352]
[1729817874594,0.43900903,68037.0,68032.0,0.07352]
[1729817874595,0.11116214,68035.0,68032.0,0.07352]
[1729817874799,0.11116214,68034.0,68032.0,0.07352]
[1729817875004,0.11116214,68033.0,68032.0,0.07352]
[1729817875400,0.11116214,68036.0,68032.0,0.07352]
[1729817875600,0.11116214,68035.0,68032.0,0.07352]
[1729817875803,0.11116214,68034.0,68032.0,0.07352]
[1729817876009,0.43900903,68037.0,68032.0,0.07352]
[1729817876206,0.43708903,68037.0,68034.0,0.04401798]
[1729817876508,0.43708903,68037.0,68033.0,0.04401798]
[1729817878109,0.073517,68035.0,68032.0,0.11753798]
[1729817878301,0.073517,68035.0,68033.0,0.04401798]
[1729817878501,0.073517,68035.0,68032.0,0.11753798]
[1729817880002,0.073517,68035.0,68033.0,0.04401798]
[1729817880198,0.22609606,68034.0,68033.0,0.04401798]
[1729817883312,0.59353806,68034.0,68031.0,0.04401798]
[1729817883616,0.073524,68028.0,68027.0,0.3608]
[1729817884000,0.1111515,68028.0,68027.0,0.3608]
[1729817884207,0.16389532,68028.0,68027.0,0.073525]
[1729817884512,0.11115153,68028.0,68026.0,0.01132377]
[1729817884708,0.11115153,68027.0,68025.0,0.10014006]
[1729817884904,0.3608,68030.0,68026.0,0.073526]
[1729817885106,0.16390344,68029.0,68026.0,0.073526]
[1729817885408,0.16390344,68028.0,68026.0,0.10014006]
[1729817885606,0.16390344,68027.0,68026.0,0.10014006]
[1729817885809,0.11115965,68027.0,68026.0,0.10014006]
[1729817888313,0.11115965,68027.0,68026.0,0.17366706]
[1729817888512,0.19071038,68027.0,68026.0,0.17366706]
[1729817888822,0.2718605,68027.0,68026.0,0.17366706]
[1729817889117,0.27144866,68027.0,68026.0,0.22373709]
[1729817889303,0.27144866,68027.0,68026.0,0.6460457]
[1729817889504,0.1634916,68027.0,68026.0,0.6460457]
[1729817889705,0.1607652,68028.0,68027.0,0.073525]
[1729817889918,0.1607652,68029.0,68028.0,0.073524]
[1729817890103,0.1607652,68030.0,68029.0,0.073523]
[1729817890511,0.0242652,68033.0,68029.0,0.54114006]
[1729817890714,0.3608,68043.0,68032.0,0.20028012]
[1729817890916,0.3608,68043.0,68041.0,0.27379012]
[1729817891110,0.36276,68052.0,68048.0,0.073502]
[1729817891111,0.3608,68052.0,68048.0,0.073502]
[1729817891316,0.05007003,68051.0,68049.0,0.27571804]
[1729817891616,0.13837003,68050.0,68049.0,0.17557798]
[1729817891812,0.13837003,68050.0,68049.0,0.10207598]
[1729817892016,0.13837003,68050.0,68049.0,0.19020871]
[1729817892217,0.21187103,68050.0,68049.0,0.10207598]
[1729817892410,0.23808146,68050.0,68049.0,0.10207598]
[1729817893616,0.14978246,68049.0,68048.0,0.07341439]
[1729817893808,0.07628046,68048.0,68041.0,0.08813273]
[1729817894009,0.87792046,68049.0,68034.0,0.10503209]
[1729817894010,0.073512,68039.0,68038.0,0.08813273]
[1729817894212,0.073516,68036.0,68035.0,0.08813273]
[1729817894522,0.073517,68035.0,68034.0,0.00220459]
[1729817894719,0.67955746,68035.0,68034.0,0.00220459]
[1729817895413,0.07628046,68034.0,68027.0,0.08811208]
[1729817895610,0.43708046,68028.0,68027.0,0.08811208]
[1729817897218,0.43708046,68028.0,68026.0,0.16163808]
[1729817899025,0.0811552,68027.0,68026.0,0.073526]
[1729817899222,0.0811552,68027.0,68022.0,0.07628046]
[1729817899425,0.0811552,68026.0,68023.0,0.07353]
[1729817899616,0.59765095,68028.0,68023.0,0.07353]
[1729817899617,0.14596296,68024.0,68023.0,0.07353]
[1729817899928,0.25552627,68024.0,68023.0,0.07353]
[1729817900422,0.10956331,68024.0,68023.0,0.07353]
[1729817901926,0.10956331,68024.0,68023.0,0.14981046]
[1729817906138,0.58500342,68028.0,68024.0,0.073528]
[1729817906341,0.3608,68028.0,68026.0,0.073526]
[1729817908237,0.3608,68028.0,68027.0,0.073525]
[1729817909248,0.3608,68028.0,68027.0,0.17670343]
[1729817912149,0.16508046,68035.0,68030.0,0.073522]
[1729817912348,0.16508046,68035.0,68031.0,0.17660341]
[1729817912550,0.07628046,68033.0,68032.0,0.10308241]
[1729817912738,0.07628046,68033.0,68031.0,0.073521]
[1729817912739,0.07628046,68032.0,68031.0,0.073521]
[1729817913143,0.07628046,68032.0,68031.0,0.17674899]
[1729817914238,0.14070034,68032.0,68031.0,0.073521]
[1729817914950,0.14070034,68032.0,68025.0,0.01154597]
[1729817914951,0.073522,68031.0,68028.0,0.073524]
[1729817915247,0.3608,68029.0,68028.0,0.073524]
[1729817915448,0.42521988,68029.0,68028.0,0.073524]
[1729817915951,0.42522091,68029.0,68028.0,0.073524]
[1729817917047,0.3608,68029.0,68028.0,0.073524]